fUSD/lending_fUSD_20260404
["ID","MTS","AMOUNT","RATE_DAILY","PERIOD"]
[419720971,1775334640554,-500.0,0.00013873,2]
[419720972,1775334640564,-500.0,0.00013873,2]
[419720973,1775334640573,-500.0,0.00013873,2]
[419720974,1775334640583,-500.0,0.00013873,2]
[419720975,1775334640593,-609.23348249,0.00013873,2]
[419720976,1775334640602,-500.0,0.00013905,2]
[419720977,1775334640612,-500.0,0.00013905,2]
[419720978,1775334640622,-431.42104867,0.00013905,2]
[419720979,1775334640632,-520.83,0.00013905,2]
[419720980,1775334640641,-520.83,0.00013905,2]
[419720981,1775334640651,-520.83,0.00013905,2]
[419720982,1775334640660,-520.83,0.00013905,2]
[419720983,1775334640670,-520.83,0.00013905,2]
[419720984,1775334640679,-520.83,0.00013905,2]
[419720985,1775334640689,-520.83,0.00013905,2]
[419720986,1775334640699,-722.32,0.00013905,2]
[419720987,1775334640708,-722.32,0.00013905,2]
[419720988,1775334640718,-722.32,0.00013905,2]
[419720989,1775334640728,-722.32,0.00013905,2]
[419720990,1775334640737,-722.32,0.00013905,2]
[419720991,1775334640747,-722.32,0.00013905,2]
[419720992,1775334640757,-500.0,0.00013905,2]
[419720993,1775334640766,-500.0,0.00013905,2]
[419720994,1775334640776,-500.0,0.00013905,2]
[419720995,1775334640786,-500.0,0.00013905,2]
[419720996,1775334640795,-500.0,0.00013905,2]
[419720997,1775334640805,-500.0,0.00013905,2]
[419720998,1775334640815,-500.0,0.00013905,2]
[419720999,1775334640824,-500.0,0.00013905,2]
[419721000,1775334640834,-500.0,0.00013905,2]
[419721001,1775334640843,-500.0,0.00013905,2]
[419721002,1775334640853,-500.0,0.00013905,2]
[419721003,1775334640863,-500.0,0.00013905,2]
[419721004,1775334640872,-449.17994436,0.00013905,2]
[419721005,1775334640881,-500.0,0.00013905,2]
[419721006,1775334640891,-500.0,0.00013905,2]
[419721007,1775334640900,-500.0,0.00013905,2]
[419721008,1775334640910,-500.0,0.00013905,2]
[419721009,1775334640920,-500.0,0.00013905,2]
[419721010,1775334640929,-500.0,0.00013905,2]
[419721011,1775334640939,-500.0,0.00013905,2]
[419721012,1775334640948,-500.0,0.00013905,2]
[419721013,1775334640958,-500.0,0.00013905,2]
[419721014,1775334640967,-500.0,0.00013905,2]
[419721015,1775334640976,-500.0,0.00013905,2]
[419721016,1775334640986,-500.0,0.00013905,2]
[419721017,1775334640995,-500.0,0.00013905,2]
[419721018,1775334641005,-1000.0,0.00013921,2]
[419721019,1775334641014,-1000.0,0.00013921,2]
[419721020,1775334641024,-205.991085,0.00013965,2]
[419721021,1775334641033,-965.460336,0.00013965,2]
[419721022,1775334641043,-307.35572359,0.00013973,2]
[419721023,1775334641052,-500.0,0.00013973,2]
[419721024,1775334641062,-500.0,0.00013973,2]
[419721025,1775334641073,-165.64274187,0.00013973,2]
[419721026,1775334641083,-500.0,0.00013973,2]
[419721027,1775334641092,-500.0,0.00013973,2]
[419721028,1775334641102,-500.0,0.00013973,2]
[419721029,1775334641111,-500.0,0.00013973,2]
[419721030,1775334641121,-500.0,0.00013973,2]
[419721031,1775334641131,-500.0,0.00013973,2]
[419721032,1775334641140,-518.91238386,0.00013973,2]
[419721033,1775334641150,-500.0,0.00013973,2]
[419721034,1775334641159,-500.0,0.00013973,2]
[419721035,1775334641169,-500.0,0.00013973,2]
[419721036,1775334641178,-500.0,0.00013973,2]
[419721037,1775334641187,-500.0,0.00013973,2]
[419721038,1775334641197,-178.83121777,0.00013973,2]
[419721039,1775334641206,-500.0,0.00013973,2]
[419721040,1775334641215,-500.0,0.00013973,2]
[419721041,1775334641224,-500.0,0.00013973,2]
[419721042,1775334641234,-166.66,0.00013973,2]
[419721043,1775334641243,-2623.673873,0.00013983,2]
[419721044,1775334641253,-15779.83901405,0.0001399,2]
[419721045,1775334641262,-821.836063,0.00013994,2]
[419721046,1775334641271,-1349.212594,0.00013994,2]
[419721047,1775334641281,-200.506913,0.00014,2]
[419721048,1775334641291,-1807.96907093,0.00014006,2]
[419721049,1775334641300,-1749.115915,0.0001403,2]
[419721050,1775334641309,-469.166218,0.0001403,2]
[419721051,1775334641319,-238.71,0.00014033,2]
[419721052,1775334641328,-479.43,0.00014099,2]
[419721053,1775334641338,-166.66,0.0001411,2]
[419721054,1775334641350,-150.0,0.00014129,2]
[419721055,1775334641359,-150.0,0.00014129,2]
[419721056,1775334641369,-150.0,0.00014129,2]
[419721057,1775334641379,-150.0,0.00014129,2]
[419721058,1775334641389,-150.0,0.00014129,2]
[419721059,1775334641400,-150.0,0.00014129,2]
[419721060,1775334641409,-150.0,0.00014129,2]
[419721061,1775334641419,-150.0,0.00014129,2]
[419721062,1775334641428,-150.0,0.00014129,2]
[419721063,1775334641439,-150.0,0.00014129,2]
[419721064,1775334641448,-150.0,0.00014129,2]
[419721065,1775334641457,-150.0,0.00014129,2]
[419721066,1775334641467,-150.0,0.00014129,2]
[419721067,1775334641477,-150.0,0.00014129,2]
[419721068,1775334641486,-25800.65897705,0.00014129,2]
[419721069,1775334641497,-150.0,0.00014147,2]
[419721070,1775334641506,-203.51997344,0.00014151,2]
[419721071,1775334641516,-150.0,0.00014152,2]
[419721072,1775334641525,-150.0,0.00014152,2]
[419721073,1775334641535,-150.0,0.00014152,2]
[419721074,1775334641545,-150.0,0.0001416,2]
[419721075,1775334641556,-150.0,0.00014161,2]
[419721076,1775334641827,-150.0,0.00014165,2]
[419721077,1775334641837,-150.0,0.00014174,2]
[419721078,1775334641847,-150.0,0.00014175,2]
[419721079,1775334641857,-150.0,0.00014176,2]
[419721080,1775334641866,-150.0,0.00014183,2]
[419721081,1775334641876,-150.0,0.00014189,2]
[419721082,1775334641889,-150.0,0.00014189,2]
[419721083,1775334641899,-150.0,0.0001419,2]
[419721084,1775334641908,-150.0,0.00014193,2]
[419721085,1775334641918,-150.0,0.00014197,2]
[419721086,1775334641928,-150.0,0.00014198,2]
[419721087,1775334641937,-150.0,0.00014199,2]
[419721088,1775334641946,-150.0,0.00014201,2]
[419721089,1775334641955,-255.0,0.00014211,2]
[419721090,1775334641964,-150.0,0.00014219,2]
[419721091,1775334641974,-150.0,0.0001422,2]
[419721092,1775334641983,-150.0,0.00014221,2]
[419721093,1775334641992,-150.0,0.00014221,2]
[419721094,1775334642002,-150.0,0.00014222,2]
[419721095,1775334642011,-150.0,0.00014225,2]
[419721096,1775334642021,-15779.83901405,0.00014228,2]
[419721097,1775334642030,-150.0,0.00014237,2]
[419721098,1775334642040,-150.0,0.00014243,2]
[419721099,1775334642049,-150.0,0.00014244,2]
[419721100,1775334642058,-150.0,0.00014246,2]
[419721101,1775334642068,-166.66,0.00014247,2]
[419721102,1775334642077,-1000.0,0.00014247,2]
[419721103,1775334642087,-503.37341793,0.00014247,2]
[419721104,1775334642096,-385.69863661,0.00014247,2]
[419721105,1775334642106,-501.1834914,0.00014247,2]
[419721106,1775334642115,-419.81066253,0.00014247,2]
[419721107,1775334642124,-920.32389809,0.00014247,2]
[419721108,1775334642133,-1000.0,0.00014247,2]
[419721109,1775334642143,-1000.0,0.00014247,2]
[419721110,1775334642152,-502.01968107,0.00014247,2]
[419721111,1775334642161,-684.40015724,0.00014247,2]
[419721112,1775334642171,-1003.0996884,0.00014247,2]
[419721113,1775334642180,-1000.0,0.00014247,2]
[419721114,1775334642189,-1000.0,0.00014247,2]
[419721115,1775334642199,-1000.0,0.00014247,2]
[419721116,1775334642208,-1000.0,0.00014247,2]
[419721117,1775334642218,-1000.0,0.00014247,2]
[419721118,1775334642227,-1000.0,0.00014247,2]
[419721119,1775334642236,-1000.0,0.00014247,2]
[419721120,1775334642245,-150.0,0.0001425,2]
[419721121,1775334642255,-150.0,0.0001425,2]
[419721122,1775334642264,-150.0,0.0001425,2]
[419721123,1775334642274,-150.0,0.00014252,2]
[419721125,1775334642284,-150.0,0.00014255,2]
[419721126,1775334642294,-150.0,0.00014257,2]
[419721127,1775334642303,-150.0,0.00014265,2]
[419721128,1775334642313,-150.0,0.00014267,2]
[419721129,1775334642323,-1500.0,0.00014268,2]
[419721130,1775334642332,-1500.0,0.00014268,2]
[419721131,1775334642342,-1500.0,0.00014268,2]
[419721132,1775334642352,-1500.0,0.00014268,2]
[419721133,1775334642361,-1500.0,0.00014268,2]
[419721134,1775334642371,-1500.0,0.00014268,2]
[419721135,1775334642380,-150.0,0.00014269,2]
[419721136,1775334642389,-150.0,0.00014273,2]
[419721137,1775334642398,-2000.0,0.0001428,2]
[419721138,1775334642408,-2000.0,0.0001428,2]
[419721139,1775334642417,-2000.0,0.0001428,2]
[419721140,1775334642426,-2000.0,0.0001428,2]
[419721141,1775334642436,-2000.0,0.0001428,2]
[419721142,1775334642445,-2000.0,0.0001428,2]
[419721143,1775334642454,-2000.0,0.0001428,2]
[419721144,1775334642464,-2000.0,0.0001428,2]
[419721145,1775334642473,-2000.0,0.0001428,2]
[419721146,1775334642482,-2084.0,0.0001428,2]
[419721147,1775334642492,-150.0,0.00014283,2]
[419721148,1775334642501,-150.0,0.00014288,2]
[419721149,1775334642511,-150.0,0.00014289,2]
[419721150,1775334642520,-150.0,0.0001429,2]
[419721151,1775334642530,-150.0,0.00014291,2]
[419721152,1775334642540,-150.0,0.00014293,2]
[419721153,1775334642549,-150.0,0.00014309,2]
[419721154,1775334642558,-150.0,0.0001431,2]
[419721155,1775334642568,-150.0,0.0001431,2]
[419721156,1775334642578,-150.0,0.00014311,2]
[419721157,1775334642587,-150.0,0.00014313,2]
[419721158,1775334642596,-150.0,0.00014313,2]
[419721159,1775334642606,-2000.0,0.00014316,2]
[419721160,1775334642616,-2000.0,0.00014316,2]
[419721161,1775334642625,-2000.0,0.00014316,2]
[419721162,1775334642635,-2000.0,0.00014316,2]
[419721163,1775334642644,-2000.0,0.00014316,2]
[419721164,1775334642654,-2000.0,0.00014316,2]
[419721165,1775334642663,-2000.0,0.00014316,2]
[419721166,1775334642673,-2000.0,0.00014316,2]
[419721167,1775334642682,-2000.0,0.00014316,2]
[419721168,1775334642692,-2027.0,0.00014316,2]
[419721169,1775334642702,-150.0,0.00014316,2]
[419721170,1775334642711,-150.0,0.00014321,2]
[419721171,1775334642722,-2000.0,0.00014324,2]
[419721172,1775334642732,-150.0,0.00014327,2]
[419721173,1775334642743,-150.0,0.00014334,2]
[419721174,1775334642754,-150.0,0.00014337,2]
[419721175,1775334642765,-150.0,0.0001434,2]
[419721176,1775334642775,-150.0,0.00014344,2]
[419721177,1775334642785,-150.0,0.00014345,2]
[419721178,1775334642794,-250.0,0.0001435,2]
[419721179,1775334642803,-150.0,0.00014353,2]
[419721180,1775334642813,-150.0,0.00014356,2]
[419721181,1775334642822,-500.0,0.00014357,2]
[419721182,1775334642832,-500.0,0.00014358,2]
[419721183,1775334642842,-500.0,0.00014358,2]
[419721184,1775334642853,-500.0,0.00014358,2]
[419721185,1775334642863,-500.0,0.00014358,2]
[419721186,1775334642873,-500.0,0.00014358,2]
[419721187,1775334642882,-500.0,0.00014358,2]
[419721188,1775334642892,-500.0,0.00014358,2]
[419721189,1775334642901,-500.0,0.00014358,2]
[419721190,1775334642911,-500.0,0.00014358,2]
[419721191,1775334642920,-500.0,0.00014358,2]
[419721192,1775334642929,-500.0,0.00014358,2]
[419721193,1775334642939,-500.0,0.00014358,2]
[419721194,1775334642948,-500.0,0.00014358,2]
[419721195,1775334642959,-500.0,0.00014358,2]
[419721196,1775334642968,-433.75,0.00014358,2]
[419721197,1775334642979,-150.0,0.0001436,2]
[419721198,1775334642988,-420.0,0.00014363,2]
[419721199,1775334642998,-150.0,0.00014363,2]
[419721200,1775334643007,-150.0,0.00014363,2]
[419721201,1775334643017,-150.0,0.0001437,2]
[419721202,1775334643027,-150.0,0.0001437,2]
[419721203,1775334643037,-150.0,0.0001437,2]
[419721204,1775334643046,-479.4791124,0.00014373,2]
[419721205,1775334643056,-150.0,0.00014375,2]
[419721206,1775334643067,-150.0,0.00014379,2]
[419721207,1775334643076,-150.0,0.00014381,2]
[419721208,1775334643086,-150.0,0.00014383,2]
[419721209,1775334643096,-166.66,0.00014384,2]
[419721211,1775334643105,-150.0,0.00014385,2]
[419721213,1775334643115,-150.0,0.00014387,2]
[419721214,1775334643125,-25800.65897705,0.00014387,2]
[419721216,1775334643135,-150.0,0.00014399,2]
[419721217,1775334643144,-722.32,0.000144,2]
[419721218,1775334643154,-500.0,0.000144,2]
[419721219,1775334643163,-150.0,0.00014402,2]
[419721220,1775334643173,-150.0,0.00014406,2]
[419721221,1775334643183,-150.0,0.00014406,2]
[419721222,1775334643193,-1680.0,0.00014408,2]
[419721223,1775334643203,-150.0,0.0001441,2]
[419721224,1775334643213,-384.44,0.00014416,2]
[419721225,1775334643223,-150.0,0.00014417,2]
[419721226,1775334643233,-150.0,0.00014417,2]
[419721229,1775334643243,-1000.0,0.00014421,2]
[419721231,1775334643253,-500.0,0.00014421,2]
[419721233,1775334643262,-1001.3800559,0.00014421,2]
[419721235,1775334643272,-306.90768699,0.00014421,2]
[419721236,1775334643282,-502.59758452,0.00014421,2]
[419721237,1775334643291,-710.53546823,0.00014421,2]
[419721238,1775334643301,-1013.6791618,0.00014421,2]
[419721240,1775334643311,-500.0,0.00014421,2]
[419721242,1775334643321,-150.0,0.00014425,2]
[419721245,1775334643330,-150.0,0.00014429,2]
[419721247,1775334643340,-150.0,0.00014431,2]
[419721248,1775334643349,-150.0,0.00014431,2]
[419721250,1775334643358,-150.0,0.00014433,2]
[419721251,1775334643368,-150.0,0.00014436,2]
[419721252,1775334643378,-150.0,0.00014437,2]
[419721253,1775334643387,-150.0,0.00014443,2]
[419721254,1775334643397,-150.0,0.00014447,2]
[419721255,1775334643408,-150.0,0.00014449,2]
[419721256,1775334643418,-150.0,0.00014452,2]
[419721257,1775334643427,-150.0,0.00014454,2]
[419721258,1775334643437,-150.0,0.00014457,2]
[419721259,1775334643447,-15779.83901405,0.00014466,2]
[419721260,1775334643457,-150.0,0.00014467,2]
[419721261,1775334643467,-1500.0,0.00014468,2]
[419721262,1775334643477,-1500.0,0.00014468,2]
[419721263,1775334643487,-150.0,0.0001447,2]
[419721264,1775334643497,-150.0,0.00014472,2]
[419721265,1775334643507,-150.0,0.00014475,2]
[419721266,1775334643517,-150.0,0.0001448,2]
[419721267,1775334643527,-150.0,0.00014481,2]
[419721268,1775334643536,-150.0,0.0001449,2]
[419721269,1775334643547,-150.0,0.00014491,2]
[419721270,1775334643557,-150.0,0.00014491,2]
[419721271,1775334643566,-150.0,0.00014491,2]
[419721272,1775334643575,-150.0,0.00014493,2]
[419721273,1775334643584,-150.0,0.00014498,2]
[419721274,1775334643594,-150.0,0.00014498,2]
[419721275,1775334643603,-150.0,0.00014504,2]
[419721276,1775334643613,-150.0,0.00014508,2]
[419721277,1775334643623,-150.0,0.00014513,2]
[419721278,1775334643632,-150.0,0.00014516,2]
[419721279,1775334643642,-500.0,0.00014521,2]
[419721280,1775334643651,-1000.0,0.00014521,2]
[419721281,1775334643660,-500.0,0.00014521,2]
[419721282,1775334643669,-1000.0,0.00014521,2]
[419721283,1775334643679,-1000.0,0.00014521,2]
[419721284,1775334643689,-1000.0,0.00014521,2]
[419721285,1775334643699,-1000.0,0.00014521,2]
[419721286,1775334643709,-500.67291823,0.00014521,2]
[419721287,1775334643719,-1000.0,0.00014521,2]
[419721288,1775334643729,-1000.0,0.00014521,2]
[419721289,1775334643738,-1000.0,0.00014521,2]
[419721290,1775334643748,-1002.03101859,0.00014521,2]
[419721291,1775334643758,-1000.0,0.00014521,2]
[419721292,1775334643768,-1001.88837508,0.00014521,2]
[419721293,1775334643778,-1000.0,0.00014521,2]
[419721294,1775334643787,-150.0,0.00014521,2]
[419721295,1775334643797,-150.0,0.00014526,2]
[419721296,1775334643806,-150.0,0.00014527,2]
[419721297,1775334643816,-150.0,0.00014529,2]
[419721298,1775334643826,-150.0,0.00014538,2]
[419721299,1775334643836,-150.0,0.00014544,2]
[419721300,1775334643845,-150.0,0.00014544,2]
[419721301,1775334643855,-150.0,0.00014545,2]
[419721302,1775334643865,-150.0,0.00014551,2]
[419721303,1775334643874,-150.0,0.00014551,2]
[419721304,1775334643884,-150.0,0.00014551,2]
[419721305,1775334643894,-150.0,0.0001456,2]
[419721306,1775334643904,-150.0,0.00014561,2]
[419721307,1775334643915,-150.0,0.00014562,2]
[419721308,1775334643925,-150.0,0.00014567,2]
[419721309,1775334643935,-150.0,0.00014574,2]
[419721310,1775334643947,-384.44,0.00014577,2]
[419721311,1775334643958,-150.0,0.00014577,2]
[419721312,1775334643969,-150.0,0.0001458,2]
[419721313,1775334643979,-150.0,0.00014584,2]
[419721314,1775334643989,-203.51997344,0.00014589,2]
[419721315,1775334643999,-156.39703094,0.00014589,2]
[419721316,1775334644009,-412.22409135,0.00014589,2]
[419721317,1775334644018,-8092.03795977,0.00014589,2]
[419721318,1775334644028,-150.0,0.0001459,2]
[419721319,1775334644038,-150.0,0.0001459,2]
[419721320,1775334644050,-150.0,0.00014597,2]
[419721321,1775334644061,-150.0,0.00014598,2]
[419721322,1775334644071,-150.0,0.00014607,2]
[419721323,1775334644080,-150.0,0.00014609,2]
[419721324,1775334644089,-150.0,0.00014612,2]
[419721325,1775334644099,-150.0,0.00014612,2]
[419721326,1775334644108,-150.0,0.00014612,2]
[419721327,1775334644118,-150.0,0.00014614,2]
[419721328,1775334644127,-150.0,0.00014616,2]
[419721329,1775334644137,-150.0,0.00014621,2]
[419721330,1775334644146,-150.0,0.00014621,2]
[419721331,1775334644155,-150.0,0.00014629,2]
[419721332,1775334644165,-150.0,0.00014634,2]
[419721333,1775334644174,-150.0,0.00014637,2]
[419721334,1775334644183,-150.0,0.00014641,2]
[419721336,1775334644269,-150.0,0.00014644,2]
[419721337,1775334644279,-25800.65897705,0.00014644,2]
[419721338,1775334644288,-150.0,0.00014652,2]
[419721339,1775334644297,-150.0,0.00014652,2]
[419721340,1775334644306,-150.0,0.00014652,2]
[419721341,1775334644316,-150.0,0.0001466,2]
[419721343,1775334644325,-150.0,0.00014668,2]
[419721344,1775334644334,-150.0,0.0001467,2]
[419721345,1775334644343,-150.0,0.00014672,2]
[419721346,1775334644352,-150.0,0.00014672,2]
[419721347,1775334644361,-150.0,0.00014673,2]
[419721348,1775334644370,-150.0,0.00014675,2]
[419721349,1775334644379,-150.0,0.00014683,2]
[419721350,1775334644388,-150.0,0.00014683,2]
[419721351,1775334644397,-150.0,0.00014688,2]
[419721352,1775334644407,-150.0,0.00014691,2]
[419721353,1775334644416,-150.0,0.00014698,2]
[419721354,1775334644424,-15779.83901405,0.00014704,2]
[419721355,1775334644435,-500.0,0.00014705,2]
[419721356,1775334644444,-150.0,0.00014705,2]
[419721357,1775334644453,-150.0,0.00014706,2]
[419721358,1775334644463,-150.0,0.00014706,2]
[419721359,1775334644474,-150.0,0.00014714,2]
[419721360,1775334644484,-150.0,0.00014715,2]
[419721361,1775334644494,-2810.0,0.0001472,2]
[419721362,1775334644504,-150.0,0.0001472,2]
[419721363,1775334644513,-150.0,0.00014724,2]
[419721364,1775334644523,-150.0,0.00014729,2]
[419721365,1775334644533,-150.0,0.00014733,2]
[419721366,1775334644543,-150.0,0.00014733,2]
[419721367,1775334644552,-150.0,0.00014733,2]
[419721368,1775334644562,-238.71,0.00014734,2]
[419721369,1775334644572,-150.0,0.00014737,2]
[419721370,1775334644584,-150.0,0.00014738,2]
[419721371,1775334644593,-150.0,0.00014742,2]
[419721372,1775334644604,-150.0,0.00014743,2]
[419721373,1775334644614,-150.0,0.00014744,2]
[419721374,1775334644623,-150.0,0.00014752,2]
[419721375,1775334644633,-170.86,0.00014756,2]
[419721376,1775334644643,-150.0,0.00014757,2]
[419721377,1775334644652,-150.0,0.0001476,2]
[419721378,1775334644662,-150.0,0.00014761,2]
[419721379,1775334644671,-150.0,0.00014766,2]
[419721380,1775334644681,-150.0,0.0001477,2]
[419721381,1775334644690,-170.86,0.00014774,2]
[419721382,1775334644700,-150.0,0.00014775,2]
[419721383,1775334644709,-150.0,0.00014775,2]
[419721384,1775334644719,-150.0,0.00014778,2]
[419721385,1775334644728,-150.0,0.00014785,2]
[419721386,1775334644737,-150.0,0.00014789,2]
[419721387,1775334644747,-327.53097151,0.00014789,2]
[419721388,1775334644757,-150.0,0.00014793,2]
[419721389,1775334644768,-150.0,0.00014793,2]
[419721390,1775334644778,-170.85371154,0.00014793,2]
[419721391,1775334644789,-1000.0,0.00014795,2]
[419721392,1775334644798,-1005.31465094,0.00014795,2]
[419721393,1775334644808,-1082.86950942,0.00014795,2]
[419721394,1775334644818,-1500.0,0.00014795,2]
[419721395,1775334644827,-1500.0,0.00014795,2]
[419721396,1775334644837,-1500.0,0.00014795,2]
[419721397,1775334644846,-1500.0,0.00014795,2]
[419721398,1775334644855,-502.19050137,0.00014795,2]
[419721399,1775334644864,-1500.0,0.00014795,2]
[419721400,1775334644874,-952.97866013,0.00014795,2]
[419721401,1775334644883,-150.0,0.00014796,2]
[419721402,1775334644892,-150.0,0.00014798,2]
[419721403,1775334644902,-150.0,0.00014802,2]
[419721404,1775334644912,-150.0,0.00014806,2]
[419721405,1775334644921,-150.0,0.00014808,2]
[419721406,1775334644930,-150.0,0.00014811,2]
[419721407,1775334644939,-150.0,0.00014814,2]
[419721408,1775334644949,-2000.0,0.00014816,2]
[419721409,1775334644958,-298.88224457,0.00014816,2]
[419721410,1775334644967,-2000.0,0.00014816,2]
[419721411,1775334644976,-839.64282887,0.00014816,2]
[419721412,1775334644986,-2000.0,0.00014816,2]
[419721413,1775334644995,-150.0,0.00014821,2]
[419721414,1775334645004,-150.0,0.00014832,2]
[419721415,1775334645014,-150.0,0.00014832,2]
[419721416,1775334645024,-150.0,0.00014834,2]
[419721417,1775334645033,-150.0,0.00014834,2]
[419721418,1775334645043,-150.0,0.00014837,2]
[419721419,1775334645052,-150.0,0.00014844,2]
[419721420,1775334645061,-150.0,0.00014851,2]
[419721421,1775334645071,-150.0,0.00014853,2]
[419721422,1775334645080,-150.0,0.00014853,2]
[419721423,1775334645088,-150.0,0.00014853,2]
[419721424,1775334645098,-150.0,0.00014855,2]
[419721425,1775334645107,-150.0,0.00014857,2]
[419721426,1775334645116,-150.0,0.00014866,2]
[419721427,1775334645126,-150.0,0.00014868,2]
[419721428,1775334645135,-150.0,0.00014868,2]
[419721429,1775334645144,-150.0,0.00014869,2]
[419721430,1775334645154,-150.0,0.00014879,2]
[419721431,1775334645163,-150.0,0.0001488,2]
[419721432,1775334645172,-150.0,0.00014887,2]
[419721433,1775334645182,-150.0,0.00014891,2]
[419721434,1775334645191,-150.0,0.00014898,2]
[419721435,1775334645201,-150.0,0.00014898,2]
[419721436,1775334645210,-25800.65897705,0.00014902,2]
[419721437,1775334645219,-150.0,0.00014902,2]
[419721438,1775334645229,-150.0,0.00014902,2]
[419721439,1775334645238,-150.0,0.00014905,2]
[419721440,1775334645247,-150.0,0.00014914,2]
[419721441,1775334645256,-150.0,0.00014914,2]
[419721442,1775334645266,-150.0,0.00014914,2]
[419721443,1775334645276,-150.0,0.00014914,2]
[419721444,1775334645285,-150.0,0.00014914,2]
[419721445,1775334645295,-162.0,0.0001492,2]
[419721446,1775334645304,-1572.0,0.0001492,2]
[419721447,1775334645314,-150.0,0.00014923,2]
[419721448,1775334645324,-150.0,0.00014925,2]
[419721449,1775334645334,-150.0,0.00014925,2]
[419721450,1775334645344,-150.0,0.00014929,2]
[419721451,1775334645353,-150.0,0.0001493,2]
[419721452,1775334645363,-150.0,0.00014937,2]
[419721453,1775334645372,-150.0,0.00014941,2]
[419721454,1775334645382,-15779.83901405,0.00014941,2]
[419721455,1775334645391,-150.0,0.00014948,2]
[419721456,1775334645401,-150.0,0.00014949,2]
[419721457,1775334645410,-150.0,0.00014959,2]
[419721458,1775334645421,-150.0,0.0001496,2]
[419721459,1775334645430,-150.0,0.0001496,2]
[419721460,1775334645439,-150.0,0.00014962,2]
[419721461,1775334645449,-1097.01949969,0.00014968,2]
[419721462,1775334645458,-150.0,0.00014971,2]
[419721463,1775334645468,-150.0,0.00014972,2]
[419721464,1775334645478,-150.0,0.00014974,2]
[419721465,1775334645487,-150.0,0.00014974,2]
[419721466,1775334645497,-150.0,0.00014974,2]
[419721467,1775334645506,-150.0,0.00014977,2]
[419721468,1775334645515,-150.0,0.00014983,2]
[419721469,1775334645525,-150.0,0.00014991,2]
[419721470,1775334645536,-150.0,0.00014993,2]
[419721471,1775334645546,-150.0,0.00014994,2]
[419721472,1775334645555,-150.0,0.00014995,2]
[419721473,1775334645565,-150.0,0.00014996,2]
[419721474,1775334645576,-150.0,0.00015006,2]
[419721475,1775334645586,-150.0,0.00015013,2]
[419721476,1775334645596,-150.0,0.00015016,2]
[419721477,1775334645606,-1102.78280616,0.00015016,2]
[419721478,1775334645617,-2011.5547996,0.00015016,2]
[419721479,1775334645627,-150.0,0.00015019,2]
[419721480,1775334645637,-150.0,0.00015021,2]
[419721481,1775334645646,-203.51997344,0.00015026,2]
[419721482,1775334645656,-150.0,0.00015026,2]
[419721483,1775334645665,-150.0,0.00015029,2]
[419721484,1775334645675,-150.0,0.00015031,2]
[419721485,1775334645685,-160.0,0.00015031,2]
[419721486,1775334645694,-150.0,0.00015034,2]
[419721487,1775334645703,-150.0,0.00015034,2]